fUSD/lending_fUSD_20250107
["ID","MTS","AMOUNT","RATE_DAILY","PERIOD"]
[347977059,1736257897510,-500.0,0.00010795,2]
[347977060,1736257897542,-500.0,0.00010795,2]
[347977061,1736257897576,-500.0,0.00010795,2]
[347977062,1736257897610,-516.65,0.00010795,2]
[347977063,1736257897645,-1918.4,0.00010795,2]
[347977064,1736257897678,-500.0,0.00010795,2]
[347977065,1736257897711,-517.43,0.00010795,2]
[347977066,1736257897748,-500.0,0.00010795,2]
[347977067,1736257897784,-239.56,0.00010795,2]
[347977068,1736257897815,-500.0,0.00010795,2]
[347977069,1736257897848,-354.50866912,0.00010795,2]
[347977070,1736257897880,-1330.98,0.00010795,2]
[347977071,1736257897912,-500.0,0.00010795,2]
[347977072,1736257897943,-500.0,0.00010795,2]
[347977073,1736257897975,-500.0,0.00010795,2]
[347977074,1736257898010,-500.0,0.00010795,2]
[347977075,1736257898040,-500.0,0.00010795,2]
[347977076,1736257898070,-500.0,0.00010795,2]
[347977077,1736257898101,-500.0,0.00010795,2]
[347977078,1736257898134,-500.0,0.00010795,2]
[347977079,1736257898166,-1144.09,0.00010795,2]
[347977080,1736257898198,-500.0,0.00010795,2]
[347977081,1736257898230,-500.0,0.00010795,2]
[347977082,1736257898261,-500.0,0.00010795,2]
[347977083,1736257898293,-500.0,0.00010795,2]
[347977084,1736257898324,-500.0,0.00010795,2]
[347977085,1736257898356,-500.0,0.00010795,2]
[347977086,1736257898388,-500.0,0.00010795,2]
[347977087,1736257898419,-500.0,0.00010795,2]
[347977088,1736257898450,-500.0,0.00010795,2]
[347977089,1736257898481,-502.64085407,0.00010795,2]
[347977090,1736257898511,-500.0,0.00010795,2]
[347977091,1736257898542,-500.0,0.00010795,2]
[347977092,1736257898573,-223.54347374,0.00010795,2]
[347977093,1736257898604,-588.85,0.00010795,2]
[347977094,1736257898638,-1283.07,0.00010795,2]
[347977095,1736257898669,-500.0,0.00010795,2]
[347977096,1736257898699,-500.0,0.00010795,2]
[347977097,1736257898733,-523.58,0.00010795,2]
[347977098,1736257898765,-776.88,0.00010795,2]
[347977099,1736257898796,-500.0,0.00010795,2]
[347977100,1736257898827,-2197.83,0.00010795,2]
[347977101,1736257898858,-500.0,0.00010795,2]
[347977102,1736257898892,-500.0,0.00010795,2]
[347977103,1736257898923,-559.19,0.00010795,2]
[347977104,1736257898956,-1956.12,0.00010795,2]
[347977105,1736257898992,-500.0,0.00010795,2]
[347977106,1736257899026,-500.0,0.00010795,2]
[347977107,1736257899060,-626.0965722,0.00010795,2]
[347977108,1736257899325,-605.28,0.00010795,2]
[347977109,1736257899360,-510.2,0.00010795,2]
[347977110,1736257899397,-500.0,0.00010795,2]
[347977111,1736257899430,-500.0,0.00010795,2]
[347977112,1736257899461,-605.46,0.00010795,2]
[347977113,1736257899493,-500.0,0.00010795,2]
[347977114,1736257899525,-586.650206,0.00010795,2]
[347977115,1736257899556,-500.0,0.00010795,2]
[347977116,1736257899587,-564.73,0.00010795,2]
[347977117,1736257899621,-1850.0,0.00010795,2]
[347977118,1736257899654,-1432.01,0.00010795,2]
[347977119,1736257899685,-500.0,0.00010795,2]
[347977120,1736257899720,-632.79,0.00010795,2]
[347977121,1736257899759,-934.89,0.00010795,2]
[347977122,1736257899792,-185.32804653,0.00010795,2]
[347977123,1736257899825,-500.0,0.00010795,2]
[347977124,1736257899858,-212.65955623,0.00010795,2]
[347977125,1736257899893,-1115.44,0.00010795,2]
[347977126,1736257899927,-789.21,0.00010795,2]
[347977127,1736257899961,-500.0,0.00010795,2]
[347977128,1736257899995,-2449.17,0.00010795,2]
[347977129,1736257900028,-500.0,0.00010795,2]
[347977130,1736257900062,-1075.65,0.00010795,2]
[347977131,1736257900101,-1293.0,0.00010795,2]
[347977132,1736257900138,-500.0,0.00010795,2]
[347977133,1736257900173,-685.66,0.00010795,2]
[347977134,1736257900207,-912.39,0.00010795,2]
[347977135,1736257900241,-1463.53,0.00010795,2]
[347977136,1736257900272,-774.68,0.00010795,2]
[347977137,1736257900303,-1667.59,0.00010795,2]
[347977138,1736257900334,-500.0,0.00010795,2]
[347977139,1736257900368,-500.0,0.00010795,2]
[347977140,1736257900402,-1821.24,0.00010795,2]
[347977141,1736257900436,-500.0,0.00010795,2]
[347977142,1736257900469,-500.0,0.00010795,2]
[347977143,1736257900502,-500.0,0.00010795,2]
[347977144,1736257900535,-500.0,0.00010795,2]
[347977145,1736257900567,-789.62,0.00010795,2]
[347977146,1736257900600,-725.32,0.00010795,2]
[347977147,1736257900636,-537.39,0.00010795,2]
[347977148,1736257900673,-500.0,0.00010795,2]
[347977149,1736257900704,-1126.42,0.00010795,2]
[347977150,1736257900741,-540.1,0.00010795,2]
[347977151,1736257900773,-500.0,0.00010795,2]
[347977152,1736257900805,-199.46862163,0.00010795,2]
[347977153,1736257900837,-500.0,0.00010795,2]
[347977154,1736257900872,-1037.25,0.00010795,2]
[347977155,1736257900905,-1737.63,0.00010795,2]
[347977156,1736257900938,-500.0,0.00010795,2]
[347977157,1736257900971,-532.24,0.00010795,2]
[347977158,1736257901005,-666.09,0.00010795,2]
[347977159,1736257901037,-500.0,0.00010795,2]
[347977160,1736257901070,-500.0,0.00010795,2]
[347977161,1736257901101,-500.0,0.00010795,2]
[347977162,1736257901134,-597.2,0.00010795,2]
[347977163,1736257901167,-592.37,0.00010795,2]
[347977164,1736257901200,-928.01,0.00010795,2]
[347977165,1736257901230,-500.0,0.00010795,2]
[347977166,1736257901261,-1189.11,0.00010795,2]
[347977167,1736257901293,-537.97,0.00010795,2]
[347977168,1736257901324,-635.97,0.00010795,2]
[347977169,1736257901356,-4411.81,0.00010795,2]
[347977170,1736257901391,-537.39,0.00010795,2]
[347977171,1736257901424,-500.0,0.00010795,2]
[347977172,1736257901454,-553.98,0.00010795,2]
[347977173,1736257901486,-536.56,0.00010795,2]
[347977174,1736257901518,-500.0,0.00010795,2]
[347977175,1736257901548,-559.02,0.00010795,2]
[347977176,1736257901580,-500.0,0.00010795,2]
[347977177,1736257901612,-500.0,0.00010795,2]
[347977178,1736257901648,-919.95,0.00010795,2]
[347977179,1736257901679,-500.0,0.00010795,2]
[347977180,1736257901713,-500.0,0.00010795,2]
[347977181,1736257901746,-508.30756083,0.00010795,2]
[347977182,1736257901778,-502.32046973,0.00010795,2]
[347977183,1736257901810,-500.0,0.00010795,2]
[347977184,1736257901841,-2543.1,0.00010795,2]
[347977185,1736257901878,-583.15,0.00010795,2]
[347977186,1736257901913,-500.0,0.00010795,2]
[347977187,1736257901946,-917.86,0.00010795,2]
[347977188,1736257901980,-500.0,0.00010795,2]
[347977189,1736257902021,-4453.92,0.00010795,2]
[347977190,1736257902058,-660.5,0.00010795,2]
[347977191,1736257902096,-500.0,0.00010795,2]
[347977192,1736257902129,-528.37,0.00010795,2]
[347977193,1736257902163,-560.76,0.00010795,2]
[347977194,1736257902196,-500.0,0.00010795,2]
[347977195,1736257902228,-500.0,0.00010795,2]
[347977196,1736257902260,-500.0,0.00010795,2]
[347977197,1736257902294,-4480.4,0.00010795,2]
[347977198,1736257902327,-764.28,0.00010795,2]
[347977199,1736257902364,-846.53,0.00010795,2]
[347977200,1736257902399,-500.0,0.00010795,2]
[347977201,1736257902433,-1286.86,0.00010795,2]
[347977202,1736257902467,-814.15,0.00010795,2]
[347977203,1736257902500,-500.0,0.00010795,2]
[347977204,1736257902534,-500.0,0.00010795,2]
[347977205,1736257902567,-500.0,0.00010795,2]
[347977206,1736257902601,-500.0,0.00010795,2]
[347977207,1736257902636,-500.0,0.00010795,2]
[347977208,1736257902670,-554.04,0.00010795,2]
[347977209,1736257902703,-500.0,0.00010795,2]
[347977210,1736257902737,-1378.92,0.00010795,2]
[347977211,1736257902771,-500.0,0.00010795,2]
[347977212,1736257902804,-500.0,0.00010795,2]
[347977213,1736257902836,-932.02,0.00010795,2]
[347977214,1736257902873,-500.0,0.00010795,2]
[347977215,1736257902906,-500.0,0.00010795,2]
[347977216,1736257902937,-470.27486098,0.00010795,2]
[347977217,1736257902970,-635.83,0.00010795,2]
[347977218,1736257903004,-500.0,0.00010795,2]
[347977219,1736257903036,-500.0,0.00010795,2]
[347977220,1736257903069,-1144.18,0.00010795,2]
[347977221,1736257903103,-500.0,0.00010795,2]
[347977222,1736257903141,-500.0,0.00010795,2]
[347977223,1736257903178,-832.31,0.00010795,2]
[347977224,1736257903212,-744.82,0.00010795,2]
[347977225,1736257903246,-500.0,0.00010795,2]
[347977226,1736257903281,-2413.24,0.00010795,2]
[347977227,1736257903316,-1041.48,0.00010795,2]
[347977228,1736257903350,-531.78,0.00010795,2]
[347977229,1736257903383,-500.0,0.00010795,2]
[347977230,1736257903416,-531.78,0.00010795,2]
[347977231,1736257903448,-500.0,0.00010795,2]
[347977232,1736257903480,-500.0,0.00010795,2]
[347977233,1736257903514,-500.0,0.00010795,2]
[347977234,1736257903546,-893.23,0.00010795,2]
[347977235,1736257903578,-500.0,0.00010795,2]
[347977236,1736257903611,-208.52,0.00010795,2]
[347977237,1736257903645,-500.0,0.00010795,2]
[347977238,1736257903677,-731.15,0.00010795,2]
[347977239,1736257903708,-513.44,0.00010795,2]
[347977240,1736257903744,-720.12,0.00010795,2]
[347977241,1736257903777,-829.99,0.00010795,2]
[347977242,1736257903810,-515.8,0.00010795,2]
[347977243,1736257903843,-6098.89,0.00010795,2]
[347977244,1736257903876,-500.0,0.00010795,2]
[347977245,1736257903909,-590.77,0.00010795,2]
[347977246,1736257903941,-500.0,0.00010795,2]
[347977247,1736257903974,-763.48,0.00010795,2]
[347977248,1736257904011,-500.0,0.00010795,2]
[347977249,1736257904045,-500.0,0.00010795,2]
[347977250,1736257904080,-652.55,0.00010795,2]
[347977251,1736257904115,-1412.62,0.00010795,2]
[347977252,1736257904151,-500.0,0.00010795,2]
[347977253,1736257904186,-500.0,0.00010795,2]
[347977254,1736257904221,-500.0,0.00010795,2]
[347977255,1736257904255,-613.46,0.00010795,2]
[347977256,1736257904289,-500.0,0.00010795,2]
[347977257,1736257904322,-887.93,0.00010795,2]
[347977258,1736257904354,-923.0,0.00010795,2]
[347977259,1736257904389,-534.58,0.00010795,2]
[347977260,1736257904422,-564.45,0.00010795,2]
[347977261,1736257904453,-500.0,0.00010795,2]
[347977262,1736257904485,-500.0,0.00010795,2]
[347977263,1736257904517,-1093.4,0.00010795,2]
[347977264,1736257904550,-1383.15,0.00010795,2]
[347977265,1736257904583,-500.0,0.00010795,2]
[347977266,1736257904616,-543.31,0.00010795,2]
[347977267,1736257904651,-1986.54194459,0.000108,2]
[347977268,1736257904683,-426.97263627,0.00010811,2]
[347977269,1736257904718,-583.77,0.0001082,2]
[347977270,1736257904754,-1933.27,0.00010821,2]
[347977271,1736257904792,-6598.82,0.00010821,2]
[347977272,1736257904827,-2259.29,0.00010821,2]
[347977273,1736257904864,-3684.69,0.00010821,2]
[347977274,1736257904903,-1846.69,0.00010821,2]
[347977275,1736257904939,-4422.37,0.00010821,2]
[347977276,1736257904975,-2228.31,0.00010821,2]
[347977277,1736257905016,-1344.8,0.00010821,2]
[347977278,1736257905053,-952.81,0.00010821,2]
[347977279,1736257905091,-1259.9,0.00010821,2]
[347977280,1736257905129,-3637.15,0.00010821,2]
[347977281,1736257905167,-500.0,0.00010821,2]
[347977282,1736257905203,-1754.91,0.00010821,2]
[347977283,1736257905239,-931.5,0.00010821,2]
[347977284,1736257905577,-251.16384214,0.00010831,2]
[347977285,1736257905615,-151.0,0.00010863,2]
[347977286,1736257905652,-151.0,0.00010863,2]
[347977287,1736257905686,-660.45,0.00010863,2]
[347977288,1736257905720,-513.68,0.00010863,2]
[347977289,1736257905755,-500.0,0.00010863,2]
[347977290,1736257905788,-655.8,0.00010863,2]
[347977291,1736257905822,-592.63,0.00010863,2]
[347977292,1736257905858,-1314.41,0.00010863,2]
[347977293,1736257905894,-1202.24,0.00010863,2]
[347977294,1736257905929,-1530.77,0.00010863,2]
[347977295,1736257905963,-1723.87,0.00010863,2]
[347977296,1736257906000,-519.92,0.00010863,2]
[347977297,1736257906035,-775.43,0.00010863,2]
[347977298,1736257906068,-591.46,0.00010863,2]
[347977299,1736257906104,-500.0,0.00010863,2]
[347977300,1736257906141,-500.0,0.00010863,2]
[347977301,1736257906178,-500.0,0.00010863,2]
[347977302,1736257906214,-755.72,0.00010863,2]
[347977303,1736257906247,-500.0,0.00010863,2]
[347977304,1736257906281,-598.07,0.00010863,2]
[347977305,1736257906318,-776.21,0.00010863,2]
[347977306,1736257906351,-1283.6,0.00010863,2]
[347977307,1736257906386,-848.62,0.00010863,2]
[347977308,1736257906420,-645.0,0.00010863,2]
[347977309,1736257906455,-565.22,0.00010863,2]
[347977310,1736257906492,-1964.44,0.00010863,2]
[347977311,1736257906526,-962.79,0.00010863,2]
[347977312,1736257906559,-3765.98,0.00010863,2]
[347977313,1736257906592,-718.49,0.00010863,2]
[347977314,1736257906629,-500.0,0.00010863,2]
[347977315,1736257906663,-988.17,0.00010863,2]
[347977316,1736257906695,-500.0,0.00010863,2]
[347977317,1736257906729,-1240.93,0.00010863,2]
[347977318,1736257906762,-1520.46,0.00010863,2]
[347977319,1736257906795,-897.47,0.00010863,2]
[347977320,1736257906829,-841.45,0.00010863,2]
[347977321,1736257906865,-1329.71,0.00010863,2]
[347977322,1736257906908,-877.15,0.00010863,2]
[347977323,1736257906946,-591.57,0.00010863,2]
[347977324,1736257906984,-856.48,0.00010863,2]
[347977325,1736257907023,-2649.4,0.00010863,2]
[347977326,1736257907060,-566.25,0.00010863,2]
[347977327,1736257907095,-2496.25,0.00010863,2]
[347977328,1736257907130,-1440.19,0.00010863,2]
[347977329,1736257907165,-945.93,0.00010863,2]
[347977330,1736257907199,-500.0,0.00010864,2]
[347977331,1736257907234,-574.83,0.00010864,2]
[347977332,1736257907270,-500.0,0.00010864,2]
[347977333,1736257907310,-500.0,0.00010864,2]
[347977334,1736257907345,-500.0,0.00010864,2]
[347977335,1736257907380,-500.0,0.00010864,2]
[347977336,1736257907414,-500.0,0.00010864,2]
[347977337,1736257907448,-500.0,0.00010864,2]
[347977338,1736257907483,-574.83,0.00010864,2]
[347977339,1736257907518,-500.0,0.00010864,2]
[347977340,1736257907551,-608.49427626,0.00010864,2]
[347977341,1736257907585,-500.0,0.00010864,2]
[347977342,1736257907618,-506.87,0.00010864,2]
[347977343,1736257907655,-500.0,0.00010864,2]
[347977344,1736257907691,-500.0,0.00010864,2]
[347977345,1736257907727,-500.0,0.00010864,2]
[347977346,1736257907764,-500.0,0.00010864,2]
[347977347,1736257907798,-500.0,0.00010864,2]
[347977348,1736257907831,-642.24,0.00010864,2]
[347977349,1736257907865,-500.0,0.00010864,2]
[347977350,1736257907905,-536.56,0.00010864,2]
[347977351,1736257907943,-500.0,0.00010864,2]
[347977352,1736257907979,-500.0,0.00010864,2]
[347977353,1736257908017,-500.0,0.00010864,2]
[347977354,1736257908054,-531.27,0.00010864,2]
[347977355,1736257908092,-500.0,0.00010864,2]
[347977356,1736257908130,-500.0,0.00010864,2]
[347977357,1736257908167,-500.0,0.00010864,2]
[347977358,1736257908202,-534.69,0.00010864,2]
[347977359,1736257908237,-500.0,0.00010864,2]
[347977360,1736257908272,-500.0,0.00010864,2]
[347977361,1736257908309,-521.29,0.00010864,2]
[347977362,1736257908342,-500.0,0.00010864,2]
[347977363,1736257908380,-500.0,0.00010864,2]
[347977364,1736257908417,-500.0,0.00010864,2]
[347977365,1736257908454,-1354.33,0.00010864,2]
[347977366,1736257908491,-500.0,0.00010864,2]
[347977367,1736257908527,-530.31,0.00010864,2]
[347977368,1736257908562,-525.81,0.00010864,2]
[347977369,1736257908597,-518.26,0.00010864,2]
[347977370,1736257908631,-517.43,0.00010864,2]
[347977371,1736257908667,-872.09,0.00010864,2]
[347977372,1736257908703,-500.0,0.00010864,2]
[347977373,1736257908742,-500.0,0.00010864,2]
[347977374,1736257908779,-547.01,0.00010864,2]
[347977375,1736257908815,-500.0,0.00010864,2]
[347977376,1736257908849,-272.77,0.00010864,2]
[347977377,1736257908884,-500.0,0.00010864,2]
[347977378,1736257908920,-500.0,0.00010864,2]
[347977379,1736257908955,-1117.84,0.00010864,2]
[347977380,1736257908993,-539.06,0.00010864,2]
[347977381,1736257909033,-500.0,0.00010864,2]
[347977382,1736257909069,-537.39,0.00010864,2]
[347977383,1736257909109,-500.0,0.00010864,2]
[347977384,1736257909149,-500.0,0.00010864,2]
[347977385,1736257909192,-537.39,0.00010864,2]
[347977386,1736257909230,-500.0,0.00010864,2]
[347977387,1736257909266,-500.0,0.00010864,2]
[347977388,1736257909301,-804.98,0.00010864,2]
[347977389,1736257909335,-316.05477214,0.00010864,2]
[347977390,1736257909372,-500.0,0.00010864,2]
[347977391,1736257909408,-500.0,0.00010864,2]
[347977392,1736257909443,-500.0,0.00010864,2]
[347977393,1736257909477,-500.0,0.00010864,2]
[347977394,1736257909510,-500.0,0.00010864,2]
[347977395,1736257909544,-500.0,0.00010864,2]
[347977396,1736257909577,-521.67,0.00010864,2]
[347977397,1736257909610,-500.0,0.00010864,2]
[347977398,1736257909646,-500.0,0.00010864,2]
[347977399,1736257909680,-516.84,0.00010864,2]
[347977400,1736257909712,-500.0,0.00010864,2]
[347977401,1736257909746,-500.0,0.00010864,2]
[347977402,1736257909781,-500.0,0.00010864,2]
[347977403,1736257909815,-500.0,0.00010864,2]
[347977404,1736257909848,-500.0,0.00010864,2]
[347977405,1736257909882,-558.77,0.00010864,2]
[347977406,1736257909916,-500.0,0.00010864,2]
[347977407,1736257909950,-514.11,0.00010864,2]
[347977408,1736257909983,-500.0,0.00010864,2]
[347977409,1736257910022,-538.54,0.00010864,2]
[347977410,1736257910057,-500.0,0.00010864,2]
[347977411,1736257910093,-500.0,0.00010864,2]
[347977412,1736257910130,-500.0,0.00010864,2]
[347977413,1736257910162,-500.0,0.00010864,2]
[347977414,1736257910196,-500.0,0.00010864,2]
[347977415,1736257910227,-500.0,0.00010864,2]
[347977416,1736257910260,-500.0,0.00010864,2]
[347977417,1736257910293,-500.0,0.00010864,2]
[347977418,1736257910327,-627.81,0.00010864,2]
[347977419,1736257910360,-500.0,0.00010864,2]
[347977420,1736257910400,-500.0,0.00010864,2]
[347977421,1736257910436,-500.0,0.00010864,2]
[347977422,1736257910469,-500.0,0.00010864,2]
[347977423,1736257910501,-661.67,0.00010864,2]
[347977424,1736257910533,-500.0,0.00010864,2]
[347977425,1736257910565,-500.0,0.00010864,2]
[347977426,1736257910598,-534.41,0.00010864,2]
[347977427,1736257910630,-151.0,0.00010864,2]
[347977428,1736257910663,-251.726418,0.00010864,2]
[347977429,1736257910697,-933.95,0.00010864,2]
[347977430,1736257910731,-151.0,0.00010865,2]
[347977431,1736257910765,-235.436579,0.00010865,2]
[347977432,1736257910799,-692.45,0.00010865,2]
[347977433,1736257910833,-1437.88,0.00010865,2]
[347977434,1736257910866,-870.49,0.00010865,2]
[347977435,1736257910903,-3316.03,0.00010865,2]
[347977436,1736257910937,-3906.11,0.00010865,2]
[347977437,1736257910969,-1991.91,0.00010865,2]
[347977438,1736257911001,-1684.03,0.00010865,2]
[347977439,1736257911035,-1012.76,0.00010865,2]
[347977440,1736257911069,-5511.6,0.00010865,2]
[347977441,1736257911103,-3077.93,0.00010865,2]
[347977442,1736257911138,-3222.16,0.00010865,2]
[347977443,1736257911175,-14899.67,0.00010865,2]
[347977444,1736257911209,-500.0,0.00010865,2]
[347977445,1736257911243,-1657.04,0.00010866,2]
[347977446,1736257911276,-1042.99,0.00010866,2]
[347977447,1736257911310,-2183.4,0.00010866,2]
[347977448,1736257911343,-500.0,0.00010866,2]
[347977449,1736257911380,-1262.12,0.00010866,2]
[347977450,1736257911414,-1567.46,0.00010866,2]
[347977451,1736257911451,-923.13,0.00010866,2]
[347977452,1736257911486,-3310.73,0.00010866,2]
[347977453,1736257911520,-2640.22,0.00010866,2]
[347977454,1736257911553,-151.0,0.00010868,2]
[347977455,1736257911587,-288.45310553,0.00010877,2]
[347977456,1736257911620,-150.0,0.00010877,2]
[347977457,1736257911657,-150.0,0.00010877,2]
[347977458,1736257911925,-150.0,0.00010877,2]
[347977459,1736257911960,-3593193.55054466,0.0001088,2]
[347977460,1736257913672,-6253.4444413,9.972e-05,2]
[347977461,1736257913691,-859.2055587,9.972e-05,2]
[347977462,1736257913700,-7112.65,0.00010246,2]
[347977463,1736257913710,-952.19,0.00010317,2]
[347977464,1736257913721,-7112.65,0.0001052,2]
[347977465,1736257913732,-2087.28,0.00010589,2]
[347977466,1736257913743,-952.19,0.00010591,2]
[347977467,1736257913753,-4964.47858301,0.00010794,2]
[347977468,1736257913764,-2148.17141699,0.00010794,2]
[347977469,1736257913775,-2087.28,0.00010863,2]
[347977470,1736257913785,-952.19,0.00010865,2]
[347977471,1736257913794,-5356.85138255,0.0001088,2]
[347977472,1736257913807,-27573.81609045,0.0001088,2]
[347977473,1736257913819,-10933.19124714,0.0001088,2]
[347977474,1736257913831,-2170.4612471,0.0001088,2]
[347977475,1736257913843,-167435.00564302,0.0001088,2]
[347977476,1736257913854,-446.79742223,0.0001088,2]
[347977477,1736257913866,-2952.989,0.0001088,2]
[347977478,1736257913880,-5944.65057397,0.0001088,2]
[347977479,1736257913897,-269.63748472,0.0001088,2]
[347977480,1736257913921,-370.002764,0.0001088,2]
[347977481,1736257913933,-2810.33948439,0.0001088,2]
[347977482,1736257914026,-3906.47492057,0.0001088,2]
[347977483,1736257914038,-969.9861,0.0001088,2]
[347977484,1736257914683,-191.00835411,0.00010237,2]
[347977485,1736257914693,-520.0,0.0001052,2]
[347977486,1736257914702,-191.00835411,0.00010784,2]
[347977487,1736257914712,-191.00835411,0.0001087,2]
[347977488,1736257914721,-86176.66761016,0.0001088,2]
[347977489,1736257914870,-469.4487318,0.0001088,2]
[347977490,1736257914887,-16017.56347792,0.0001088,2]
[347977491,1736257914900,-706.77902618,0.0001088,2]
[347977492,1736257914911,-944.4,0.0001088,2]
[347977493,1736257914923,-352.63800002,0.0001088,2]
[347977494,1736257914940,-4741.38509128,0.0001088,2]
[347977495,1736257915407,-500.0,9.768e-05,2]
[347977496,1736257915417,-492.74,0.00010042,2]
[347977497,1736257915427,-82.6600001,0.0001088,2]
[347977498,1736257915521,-153.0,9.832e-05,2]
[347977499,1736257915531,-95679.35486429,0.0001088,2]
[347977500,1736257915542,-136641.43825497,0.0001088,2]
[347977501,1736257916196,-500.0,9.699e-05,2]
[347977502,1736257916206,-153.0,9.832e-05,2]
[347977503,1736257916215,-153.0,9.832e-05,2]
[347977504,1736257916224,-153.0,9.832e-05,2]
[347977505,1736257916233,-153.0,9.832e-05,2]
[347977506,1736257916243,-153.0,9.832e-05,2]
[347977507,1736257916252,-153.0,9.832e-05,2]
[347977508,1736257916262,-153.0,9.832e-05,2]
[347977509,1736257916271,-153.0,9.832e-05,2]
[347977510,1736257916280,-153.0,9.832e-05,2]
[347977511,1736257916289,-22.06,9.832e-05,2]
[347977512,1736257916310,-130.94,9.832e-05,2]
[347977513,1736257916319,-153.0,9.832e-05,2]
[347977514,1736257916329,-153.0,9.832e-05,2]
[347977515,1736257916338,-481.80300198,0.00010042,2]
[347977519,1736258499675,5050.0,0.000108,25]
[347977520,1736258518387,-5050.0,0.000108,22]
[347977521,1736258518409,-5050.0,0.000108,15]
[347977522,1736258561775,5050.0,0.000108,26]
[347977523,1736258589511,7210.39,7.2e-05,2]
[347977524,1736258815158,-271.80746464,8.219e-05,2]
[347977531,1736259031805,-514.93253536,8.219e-05,2]
[347977532,1736259031818,-165.74,8.504e-05,2]
[347977533,1736259031827,-24.92746464,8.543e-05,2]
[347977534,1736259031922,-225.07253536,8.543e-05,2]
[347977535,1736259031932,-250.0,8.56e-05,2]
[347977536,1736259031941,-250.0,8.576e-05,2]
[347977537,1736259031950,-150.0,8.762e-05,2]
[347977538,1736259031959,-800.0,8.768e-05,2]
[347977539,1736259031969,-150.0,8.924e-05,2]
[347977540,1736259031977,-300.0,8.975e-05,2]
[347977541,1736259031987,-22399.81,8.976e-05,2]
[347977542,1736259031996,-150.0,9.003e-05,2]
[347977543,1736259032006,-150.0,9.018e-05,2]
[347977544,1736259032015,-150.0,9.019e-05,2]
[347977545,1736259032025,-1267.75,9.02e-05,2]
[347977546,1736259032034,-150.0,9.046e-05,2]
[347977547,1736259032044,-150.0,9.05e-05,2]
[347977548,1736259032053,-945.35,9.051e-05,2]
[347977549,1736259032066,-150.0,9.08e-05,2]
[347977550,1736259032075,-150.0,9.101e-05,2]
[347977551,1736259032085,-150.0,9.261e-05,2]
[347977552,1736259032095,-150.0,9.287e-05,2]
[347977553,1736259032104,-150.0,9.387e-05,2]
[347977554,1736259032114,-150.0,9.421e-05,2]
[347977555,1736259032123,-150.0,9.426e-05,2]
[347977556,1736259032133,-150.0,9.427e-05,2]
[347977557,1736259032142,-150.0,9.465e-05,2]
[347977558,1736259032153,-150.0,9.473e-05,2]
[347977559,1736259032163,-150.0,9.521e-05,2]
[347977560,1736259032172,-150.0,9.539e-05,2]
[347977561,1736259032181,-150.0,9.55e-05,2]
[347977562,1736259032191,-150.0,9.555e-05,2]
[347977563,1736259032200,-150.0,9.557e-05,2]
[347977564,1736259032210,-34612.98899027,9.578e-05,2]
[347977565,1736259032222,-7290.471,9.578e-05,2]
[347977567,1736259032251,-5698.70911555,9.578e-05,2]
[347977571,1736259032276,-2169.83089418,9.578e-05,2]